Cogmind - Beta 9.6 @@@ ROGUE MODE // 2020.09.11 @ 15:56:51 Player: Finestep Result: Destroyed by 8R-AWN with 8R-AWN's Boregun Performance ------------- Evolutions (1) 500 Regions Visited (5) 1000 Robots Destroyed (86) 430 Value Destroyed (1151) 1151 Prototype IDs (24) 480 Alien Tech Used (0) 0 Bonus (-273) -273 TOTAL SCORE: 3288 Bonus ------- High Alert Combat Kills 10 Follower Combat Kills 197 Aligned with FarCom 300 Friendly Fire -780 Cogmind --------- Core Integrity 0/400 Matter 277/300 Energy 140/140 System Corruption 0% Temperature Cool (0) Movement Treading (160) Location -9/Exiles Parts ------- > --- POWER (1) -------- Light Deuterium Engine > --- PROPULSION (2) --- Light Treads Light Treads > --- UTILITY (4) ------ Large Storage Unit > --- WEAPON (2) ------- Light Assault Rifle Heavy Assault Rifle > --- INVENTORY (10) --- Light Treads Light Treads Improved Treads Advanced Signal Interpreter Light Assault Rifle Light Assault Rifle Rocket Launcher Peak State ------------ > --- POWER ------------ Light Deuterium Engine > --- PROPULSION ------- Light Treads Light Treads > --- UTILITY ---------- Large Storage Unit Cloak of Protection Light Armor Plating Improved Light Armor Plating > --- WEAPON ----------- Light Assault Rifle Heavy Assault Rifle > --- INVENTORY -------- Light Treads Light Treads Improved Treads Advanced Signal Interpreter Light Assault Rifle Light Assault Rifle Light Assault Rifle Heavy Assault Rifle Rocket Launcher [Rating: 22] Favorites ----------- Power Light Ion Engine Engine Light Ion Engine Propulsion Light Treads Treads Light Treads Utility Large Storage Unit Device Cloak of Protection Storage Large Storage Unit Protection Improved Light Armor Plating Weapon Light Assault Rifle Ballistic Gun Light Assault Rifle Ballistic Cannon Light Cannon Launcher Rocket Launcher Special Weapon Mining Laser Special Melee Weapon Datajack Build | -11 -10 -10 -9 -9 -9 ------- Run | Scr Mat Min Mat Min Exi Slots Evolved 2 | . . . 2 . . Power . | . . . . . . Propulsion . | . . . . . . Utility 2 | . . . 2 . . Weapon . | . . . . . . Parts Attached 84 | 6 17 4 30 14 13 Power 8 | 1 1 1 2 2 1 Engine 8 | 1 1 1 2 2 1 Core . | . . . . . . Reactor . | . . . . . . Propulsion 11 | 2 2 . 4 2 1 Treads 11 | 2 2 . 4 2 1 Leg . | . . . . . . Wheel . | . . . . . . Hover . | . . . . . . Flight . | . . . . . . Utility 15 | 1 2 1 4 2 5 Device 2 | . . . 1 . 1 Storage 7 | 1 2 1 1 . 2 Processor . | . . . . . . Hackware . | . . . . . . Protection 6 | . . . 2 2 2 Artifact . | . . . . . . Weapon 50 | 2 12 2 20 8 6 Energy Gun . | . . . . . . Energy Cannon . | . . . . . . Ballistic Gun 32 | 2 6 2 11 6 5 Ballistic Cannon 9 | . 3 . 6 . . Launcher 4 | . . . 1 2 1 Special Weapon 3 | . 3 . . . . Impact Weapon . | . . . . . . Slashing Weapon . | . . . . . . Piercing Weapon . | . . . . . . Special Melee Weapon 2 | . . . 2 . . Unidentified Prototypes . | . . . . . . Parts Lost 16 | . 1 . 1 8 6 Power 4 | . 1 . 1 1 1 Propulsion 2 | . . . . 2 . Utility 5 | . . . . 2 3 Weapon 5 | . . . . 3 2 Highest Loss Streak 6 | . 1 . 1 6 6 Average Slot Usage (%) 98 | . 95 100 99 98 99 Engine 12 | . 13 14 10 10 11 Treads 24 | . 27 28 22 21 22 Storage 28 | . 23 28 33 33 29 Protection 6 | . . . 10 10 12 Ballistic Gun 21 | . 23 28 14 21 21 Ballistic Cannon 3 | . 4 . 7 . . Naked Turns . | . . . . . . Heaviest Build 88 | 12 41 59 82 75 88 Greatest Support 40 | 40 40 40 40 40 40 Greatest Overweight (x) 3 | 3 1 1 2 3 2 Average Overweight (x) . | . . . 1 1 1 Largest Inventory Capacity 26 | 6 16 18 24 24 26 Average Capacity 19 | 5 12 17 24 24 23 Most Carried 26 | 3 16 18 24 24 26 Average Carried 17 | 1 9 16 22 23 21 Final Capacity 24 | 6 16 18 24 24 10 Final Carried 24 | 3 16 18 24 23 7 Class Distribution -------------------- 49% | Hauler-Mutant 46% | Mutant 3% | Scavenger-Mutant Dominant Class ---------------- Mutant | -10/Materials Mutant | -10/Mines Hauler-Mutant | -9/Materials Hauler-Mutant | -9/Mines Hauler-Mutant | -9/Exiles Resources | -11 -10 -10 -9 -9 -9 ----------- Run | Scr Mat Min Mat Min Exi Matter Collected 2069 | 276 530 62 604 169 428 Remotely . | . . . . . . Salvage Created 2208 | 102 884 59 648 479 36 Parts 175 | 5 63 5 76 26 . Haulers Intercepted 5 | . 2 . 3 . . Recyclers Shooed 8 | . 4 . 4 . . Parts Field Recycled . | . . . . . . Retrieved Matter . | . . . . . . Parts Self-Destructed . | . . . . . . Prevented . | . . . . . . Kills | -11 -10 -10 -9 -9 -9 ------- Run | Scr Mat Min Mat Min Exi Combat Hostiles Destroyed 55 | . 16 3 22 12 2 Guns 41 | . 16 3 12 8 2 Cannons 7 | . . . 7 . . AOE 7 | . . . 3 4 . Classes Destroyed 12 | 2 7 . 1 1 1 Worker 4 | . 2 1 1 . . Builder 1 | . 1 . . . . Tunneler 3 | 1 . . 1 1 . Hauler 5 | . 2 . 3 . . Recycler 8 | 1 3 . 2 2 . Operator 3 | . 2 . 1 . . Watcher 2 | . 1 . 1 . . Swarmer 37 | . 9 3 18 7 . Grunt 11 | . 7 . 3 1 . Duelist 2 | . . . . 2 . Sentry 3 | . . . 1 2 . Assembled 7 | . . . . . 7 Best Kill Streak 7 | 1 7 2 6 4 2 Combat Bots Only 6 | . 6 2 5 4 2 Max Kills in Single Turn 5 | 1 1 1 3 1 5 Gunslinging . | . . . . . . Exploded 3 | . . . 3 1 . Melee . | . . . . . . Uniques/NPCs Destroyed . | . . . . . . Combat | -11 -10 -10 -9 -9 -9 -------- Run | Scr Mat Min Mat Min Exi Damage Taken 3438 | . 553 89 755 1159 882 Core 485 | . 64 6 89 198 128 Absorbed by Shields . | . . . . . . Core Remaining (%) 86 | 100 . 72 . . . Volleys Fired 268 | 4 103 11 84 47 19 Largest 2 | 2 2 2 2 2 2 Hottest 100 | 40 100 40 70 40 43 Shots Fired 515 | 8 200 22 167 83 35 Gun 442 | 8 181 22 122 77 32 Cannon 58 | . 14 . 44 . . Launcher 10 | . . . 1 6 3 Special 5 | . 5 . . . . Kinetic 500 | 8 195 22 166 77 32 Thermal 5 | . 5 . . . . Explosive 10 | . . . 1 6 3 Electromagnetic . | . . . . . . Robot Hit Streak 38 | 6 8 6 22 38 6 Robot Miss Streak 4 | . 4 1 4 3 2 Penetration Max . | . . . . . . Secondary Targets 5 | . 2 . . 2 1 Max Gunslinging Chain 1 | . 1 . . 1 1 Shots Hit Robots 323 | 6 118 13 100 63 23 Core Hits 149 | 3 45 7 49 33 12 Critical Hits 3 | . . 1 1 1 . Critical Kills 1 | . . . 1 . . Critical Parts Destroyed 2 | . . 1 . 1 . Melee Attacks . | . . . . . . Impact . | . . . . . . Slashing . | . . . . . . Piercing . | . . . . . . Sneak Attacks . | . . . . . . Combat Hostiles . | . . . . . . Follow-up Attacks . | . . . . . . Damage Inflicted 4315 | 68 1151 124 1259 1152 561 Guns 2524 | 68 981 124 600 533 218 Cannons 641 | . 170 . 471 . . Explosions 1110 | . . . 169 598 343 Melee . | . . . . . . Ramming 40 | . . . 19 21 . Kinetic 3165 | 68 1151 124 1071 533 218 Thermal . | . . . . . . Explosive 1110 | . . . 169 598 343 Electromagnetic . | . . . . . . Impact . | . . . . . . Slashing . | . . . . . . Piercing . | . . . . . . Highest Corruption . | . . . . . . Average Corruption . | . . . . . . Corruption Purged . | . . . . . . Overload Shots . | . . . . . . Overflow Damage 83 | . 4 . . 66 13 Projectiles 4 | . 4 . . . . Explosions 79 | . . . . 66 13 Melee . | . . . . . . Knockbacks 10 | . . . 10 . . Impact 1 | . . . 1 . . Kinetic 8 | . . . 8 . . Secondary 1 | . . . 1 . . Self-Inflicted Damage 7 | . . . 7 . . Shots 1 | . . . 1 . . Rammed 3 | . . . . 3 . Targets Rammed 4 | . . . 1 3 . Kicked . | . . . . . . Crushed 1 | . . . 1 . . Highest Temperature 40 | . 40 4 36 16 16 Average Temperature 9 | . 12 1 9 7 4 Received Heat Transfer 501 | . 138 . 123 240 . Siege Activations . | . . . . . . Robots Corrupted . | . . . . . . Combat Hostiles . | . . . . . . Parts Fried . | . . . . . . Impact Corruptions . | . . . . . . Robots Melted . | . . . . . . Combat Hostiles . | . . . . . . Parts Melted . | . . . . . . Heat Transferred . | . . . . . . Parts Sabotaged . | . . . . . . Parts Stolen . | . . . . . . Parts Stripped . | . . . . . . Power Chain Reactions . | . . . . . . Missiles Intercepted . | . . . . . . Alert | -11 -10 -10 -9 -9 -9 ------- Run | Scr Mat Min Mat Min Exi Peak Influence 413 | 10 310 93 413 247 . Average Influence 150 | 3 136 33 245 169 . Maximum Alert Level 2 | . 1 . 2 1 . Low Security (%) 65 | 100 74 100 27 67 . Level 1 31 | . 25 . 63 32 . Level 2 2 | . . . 9 . . Level 3 . | . . . . . . Level 4 . | . . . . . . Level 5 . | . . . . . . High Security . | . . . . . . Max Security . | . . . . . . Squads Dispatched 6 | . 4 1 1 . . Investigation 1 | . 1 . . . . Extermination . | . . . . . . Reinforcement 4 | . 3 . 1 . . Assault 1 | . . 1 . . . Garrison . | . . . . . . Intercept . | . . . . . . Construction Impeded . | . . . . . . Haulers Reinforced . | . . . . . . Stealth | -11 -10 -10 -9 -9 -9 --------- Run | Scr Mat Min Mat Min Exi Distress Signals 4 | . 1 . 2 1 . Communications Jammed . | . . . . . . Distress Signals . | . . . . . . Times Spotted 116 | . 36 10 43 24 3 Peak Tracking Total 5 | . 3 3 4 5 4 Tactical Retreats 13 | . . 6 . 7 . Traps | -11 -10 -10 -9 -9 -9 ------- Run | Scr Mat Min Mat Min Exi Traps Triggered 2 | . 1 1 . . . Indirectly . | . . . . . . Trap Hack Attempts 14 | . . . 14 . . Triggered . | . . . . . . Disarmed . | . . . . . . Reprogrammed 3 | . . . 3 . . Reused 3 | . . . . . 3 Traps Extracted 3 | . . . 3 . . Installed 3 | . . . . . 3 Triggered . | . . . . . . Machines | -11 -10 -10 -9 -9 -9 ---------- Run | Scr Mat Min Mat Min Exi Machines Disabled 4 | . . . 1 . 3 Max in Single Turn 2 | . . . 1 . 2 Machines Sabotaged . | . . . . . . Garrisons Compromised . | . . . . . . Overloaded Fab Kills . | . . . . . . Fab Network Shutdowns . | . . . . . . Hacking | -11 -10 -10 -9 -9 -9 --------- Run | Scr Mat Min Mat Min Exi Machines Accessed 12 | . 6 1 4 . 1 Terminals 7 | . 5 . 2 . . Fabricators . | . . . . . . Repair Stations 2 | . 1 . 1 . . Recycling Units 1 | . . . 1 . . Scanalyzers . | . . . . . . Garrison Access . | . . . . . . Total Hacks 33 | . 22 1 9 . 1 Successful 18 | . 12 1 4 . 1 Failed 15 | . 10 . 5 . . Catastrophic . | . . . . . . Database Lockouts . | . . . . . . Manual 21 | . 17 . 3 . 1 Terminals 22 | . 18 . 4 . . Fabricators . | . . . . . . Repair Stations 8 | . 4 . 4 . . Recycling Units 1 | . . . 1 . . Scanalyzers . | . . . . . . Garrison Access . | . . . . . . Terminal Hacks 7 | . 5 1 . . 1 Robot Analysis 2 | . 2 . . . . Prototype ID Bank 1 | . 1 . . . . Open Door 1 | . . 1 . . . Recall Investigation 1 | . 1 . . . . Zone Layout 1 | . 1 . . . . EX-Prototype ID Bank 1 | . . . . . 1 Fabricator Hacks . | . . . . . . Repair Station Hacks 5 | . 4 . 1 . . Scan Component 3 | . 2 . 1 . . Repair 2 | . 2 . . . . Recycling Unit Hacks 1 | . . . 1 . . Retrieve Components 1 | . . . 1 . . Scanalyzer . | . . . . . . Garrison Access Hacks . | . . . . . . Unauthorized Hacks 5 | . 3 . 2 . . Terminals 5 | . 3 . 2 . . Track 3 | . 2 . 1 . . Botnet 1 | . 1 . . . . Operators 1 | . . . 1 . . Fabricators . | . . . . . . Repair Stations . | . . . . . . Recycling Units . | . . . . . . Scanalyzers . | . . . . . . Garrison Access . | . . . . . . Data Cores Recovered . | . . . . . . Used . | . . . . . . Hacking Detections 9 | . 6 . 3 . . Full Trace Events . | . . . . . . Feedback Events . | . . . . . . Feedback Blocked . | . . . . . . Robot Schematics Acquired . | . . . . . . Robots Built . | . . . . . . Matter . | . . . . . . Time . | . . . . . . Total Robot Build Rating . | . . . . . . Part Schematics Acquired . | . . . . . . Parts Built . | . . . . . . Matter . | . . . . . . Time . | . . . . . . Total Part Build Rating . | . . . . . . Parts Repaired 2 | . 2 . . . . Time 52 | . 52 . . . . Parts Recycled . | . . . . . . Recycled Matter . | . . . . . . Retrieved Matter . | . . . . . . Retrieved Components 9 | . . . 9 . . Parts Scanalyzed . | . . . . . . Part Schematics Acquired . | . . . . . . Parts Damaged . | . . . . . . Bothacking | -11 -10 -10 -9 -9 -9 ------------ Run | Scr Mat Min Mat Min Exi Used RIF Installer . | . . . . . . Robots Hacked . | . . . . . . Non-combat . | . . . . . . Combat . | . . . . . . Robot Hacks Applied . | . . . . . . Relay Couplers Released . | . . . . . . Robots Rewired . | . . . . . . Allies Hacked . | . . . . . . Hacks Repelled . | . . . . . . Allies | -11 -10 -10 -9 -9 -9 -------- Run | Scr Mat Min Mat Min Exi Total Allies 1 | . . 1 . . . Largest Group 1 | . . 1 1 . . Highest-Rated Group 31 | . . 31 31 . . Highest-Rated Ally 31 | . . 31 31 . . Total Orders . | . . . . . . Ally Attacks 22 | . . . 22 . . Total Damage 402 | . . . 402 . . Kills 11 | . . . 11 . . Allies Corrupted . | . . . . . . Allies Melted . | . . . . . . Intel | -11 -10 -10 -9 -9 -9 ------- Run | Scr Mat Min Mat Min Exi Robot Analysis Total 2 | . 2 . . . . Derelict Logs Recovered 2 | . . 1 . 1 . Drone Launches . | . . . . . . Drone Recoveries . | . . . . . . Exploration | -11 -10 -10 -9 -9 -9 ------------- Run | Scr Mat Min Mat Min Exi Turns Passed 6416 | 105 1854 999 1528 632 1298 Spaces Moved 3057 | 55 902 527 657 272 644 Core 23 | 23 . . . . . Treads 3034 | 32 902 527 657 272 644 Legs . | . . . . . . Wheels . | . . . . . . Hover . | . . . . . . Flight . | . . . . . . Fastest Speed 50 | 50 160 160 180 180 160 Average Speed 176 | 151 162 179 183 180 187 Slowest Speed 220 | 200 180 180 200 220 200 Overloaded Moves . | . . . . . . Propulsion Burnouts . | . . . . . . Robots Hopped . | . . . . . . Cave-ins Triggered . | . . . . . . Exploration Rate (%) 59 | 4 98 78 50 58 67 Regions Visited 5 Branch Regions 3 Pre-discovered Areas 1 | . . . . 1 . Known Exits Taken . | . . . . . . Unknown Exits Taken 5 | 1 1 1 1 1 . Scrap Searched 1 | . . 1 . . . Spaces Dug 24 | . 4 . . 20 . Terrain Destroyed 84 | . 5 . 2 53 24 Melee . | . . . . . . Projectile 5 | . 5 . . . . AOE 79 | . . . 2 53 24 Actions | -11 -10 -10 -9 -9 -9 --------- Run | Scr Mat Min Mat Min Exi Total 3630 | 67 1101 566 847 341 708 Wait 80 | . 54 12 14 . . Move 3052 | 54 901 526 656 271 644 Hop . | . . . . . . Pick Up 67 | 3 19 7 23 6 9 Fast Attach 19 | 6 4 1 4 1 3 Attach 19 | . 1 2 4 8 4 Detach . | . . . . . . Swap 46 | . 12 1 22 5 6 Drop 58 | . 7 6 25 . 20 Fire 268 | 4 103 11 84 47 19 Melee . | . . . . . . Ram . | . . . . . . Kick . | . . . . . . Crush 4 | . . . 1 3 . Escape Stasis . | . . . . . . Rewire . | . . . . . . Trap 17 | . . . 14 . 3 Miscellaneous . | . . . . . . Route ------- -11/Scrapyard -10/Materials (discovered 4 exits: *Mat x3 / *Min) -10/Mines -9/Materials (discovered 2 exits: [*Mat] / [*Min]) -9/Mines (discovered 2 exits: [*Mat] / *Exi) -9/Exiles (discovered 1 exit: [*Min]) History --------- Turn | Location | Event 21 | -11/Scrapyard | Discovered new exit (range 16) 106 | -11/Scrapyard | Entered Materials 207 | -10/Materials | Discovered new exit (range 16) 314 | -10/Materials | Build established: Mutant 614 | -10/Materials | Discovered new exit (range 4) 797 | -10/Materials | Discovered new exit (range 7) 1102 | -10/Materials | Discovered new exit (range 13) 1522 | -10/Materials | Repaired Lgt. Treads 1549 | -10/Materials | Repaired Lgt. Treads 1960 | -10/Materials | Entered Mines 1969 | -10/Mines | Met a Derelict who couldn't figure out how to use a Trap Extractor 2728 | -10/Mines | Learned Materials trap positions 2904 | -10/Mines | Discovered new exit (range 12) 2921 | -10/Mines | Assisted by bots powering up and referring to "LRC-V3" 2938 | -10/Mines | Met a Derelict testing a Signal Generator 2959 | -10/Mines | Entered Materials 2959 | -9/Materials | Accompanied by 1 ally 2959 | -9/Materials | Evolved 2 slots: Utility x2 2960 | -9/Materials | Loaded intel: 24 trap records 3266 | -9/Materials | Build established: Hauler-Mutant 3311 | -9/Materials | Discovered new exit (range 6) 3540 | -9/Materials | Discovered new exit (range 11) 4487 | -9/Materials | Entered Mines 4618 | -9/Mines | Learned location of Zion (-7) 4700 | -9/Mines | Core integrity fell below 50% 4733 | -9/Mines | Lost 6 parts (1p1n2u2w) 4874 | -9/Mines | Discovered new exit (range 11) 5110 | -9/Mines | Deemed a non-threat by the Exiles lab entrance 5111 | -9/Mines | Discovered new exit (range 5) 5119 | -9/Mines | Entered Exiles 5281 | -9/Exiles | Discovered new exit (range 14) 5322 | -9/Exiles | Met 8R-AWN 5349 | -9/Exiles | Met EX-HEX 5416 | -9/Exiles | Met EX-DEC 5817 | -9/Exiles | Met EX-BIN 5841 | -9/Exiles | Aligned with FarCom system 5843 | -9/Exiles | Given EX-Vault access code 5889 | -9/Exiles | Opened EX-Vault 5905 | -9/Exiles | Found Cloak of Protection 5948 | -9/Exiles | Warned to stay clear of 0b10 Research branches 5992 | -9/Exiles | Found Modified TNC 6364 | -9/Exiles | Attacked by the Exiles 6404 | -9/Exiles | Core integrity fell below 20% 6417 | -9/Exiles | Destroyed by 8R-AWN with 8R-AWN's Boregun Last Messages --------------- 06402_ HV Slug penetrates Assembled Analyzer. 06402_ HV Slug penetrates Machine. 06403_ Extracted 4 matter. 06403_ Penetrated by HV Slug. 06406_ Extracted 3 matter. 06406_ Penetrated by HV Slug. 06408_ Imp. Light Armor Plating destroyed. 06408_ as-81208 destroyed. 06408_ Switching to secondary target: 8R-AWN. 06408_ Penetrated by HV Slug. 06408_ Lgt. Assault Rifle destroyed. 06409_ Penetrated by HV Slug. 06411_ The unstable cave ceiling collapses. 06411_ Penetrated by HV Slug. 06412_ as-08863 destroyed. 06412_ Penetrated by HV Slug. 06412_ Critical hit. 06412_ Hvy. Assault Rifle destroyed. 06414_ HV Slug penetrates Wall. 06415_ Penetrated by HV Slug. Map ----- +----------------------------------------------------+ | """#??????????????????????????????????? | | """#??????????????????????????????????? | | """#??????????????????????????????????? | | """#??????????????????????????????????? | | """#??????????????????????????????????? | | """"??????????????????????????????????? | | """#??????????????????????????????????? | | "X" """"??????????????????????????????????? | | """ #??????????????????????????????????? | | """""""""#??????????????????????????????????? | | ###########??????????????????????????????????? | | #????????????????????????????????????????????? | | #????????????????????????????????????????????? | | ##???????????????????????????????????????????? | | ##???####;######????????????????????????????? | | #####"""" """"##???????????????????????????? | | " """ """"##??????????????????????????? | | " #??????????????????????????? | | " """#??????????????????????????? | | a"#???????????#####??????????? | | == " "##?????????##" #??????????? | | ]/ "###???????#" #??????????? | | "" ! ""#??????##" ##?????????? | | #""" !!! ###??### ^ ###???????? | | #####""" = [ #;#??# ######### | | ????##""" ! @##?## #""""## | | ?????#"""" !###^ | | ????##"" g ^ ## | | ?####"""" #### | | ##""" ""#?#"""""#### | | """ #"""##?#######??#### | | ######??????????????## | | ##????????????????????? | | ##?????????????????????? | | "" " #??????????????????????? | | ##""" " " "" #??????????????????????? | | ######""" """ ???????????????????????? | | #????###""""## # # # ???????????????????????? | | ####???######??? #?#???????????????????????? | | " #???????????????##??????????????????????????? | | #???????????????????????????????????????????? | | "#???????????????????????????????????????????? | | !""!"#???????????????????????????????????????????? | | ######???????????????????????????????????????????? | | ?????????????????????????????????????????????????? | | ?????????????????????????????????????????????????? | | ?????????????????????????????????????????????????? | | ?????????????????????????????????????????????????? | | ?????????????????????????????????????????????????? | | ?????????????????????????????????????????????????? | +----------------------------------------------------+ Best States ------------- Heat Dissipation 28 Energy Generation 18 Energy Capacity 275 Matter Stores 300 Matter Capacity 300 Sight Range 16 Terrain Scan Density 10 Armor Coverage 300 Evasion (%) 40 Recoil Reduction 2 Item Schematics ----------------- None Robot Schematics ------------------ None Fabricated ------------ Nothing Alien Tech Used ----------------- None Achievements -------------- None Challenges ------------ None Game ------ Seed GyrokineticDeepJammer Manual? 0 Play Time 00:51:19 Cumulative 466.9 hours Start 2020.09.10 @ 16:31:33 End 2020.09.11 @ 15:56:51 Sessions 17 Manual Loads 0 Difficulty Rogue Special Mode None Game No. 312 Rogue 312 Adventurer 0 Explorer 0 Win Type - Total 4 Types 4/0/0/0/0/0/0 Lore% 86 Gallery% 88 Achievement% 66 Wizard Run 0 Options --------- ASCII 0 Keyboard 0 Movement Mouse Keybinds 1 Fullscreen 2 Font 24/Smallcaps Map View 68x50 Tactical HUD 1 Map Filters NONE Filters NONE Steam 1 RUN: 64f908c4-b008-4cbe-b12a-11de92b37b64